fUST/lending_fUST_20240115
["ID","MTS","AMOUNT","RATE_DAILY","PERIOD"]
[311582659,1705254648712,-500.0,0.00027945,2]
[311582661,1705254648721,-500.0,0.00027945,2]
[311582663,1705254648730,-500.0,0.00027945,2]
[311582665,1705254648739,-868.52,0.00027945,2]
[311582667,1705254648747,-500.0,0.00027945,2]
[311582669,1705254648756,-500.0,0.00027945,2]
[311582671,1705254648765,-500.0,0.00027945,2]
[311582673,1705254648774,-500.0,0.00027945,2]
[311582675,1705254648783,-8254.29,0.00027945,2]
[311582677,1705254648792,-506.8572877,0.00027945,2]
[311582679,1705254648801,-3237.08,0.00027945,2]
[311582681,1705254648812,-500.0,0.00027945,2]
[311582682,1705254648822,-500.0,0.00027945,2]
[311582684,1705254648831,-500.0,0.00027945,2]
[311582686,1705254648839,-500.0,0.00027945,2]
[311582688,1705254648849,-1112.47,0.00027945,2]
[311582690,1705254648858,-500.0,0.00027945,2]
[311582692,1705254648867,-500.0,0.00027945,2]
[311582694,1705254648876,-507.13354579,0.00028,2]
[311582696,1705254648885,-1445.66,0.00028043,2]
[311582698,1705254648894,-376.85988352,0.00028044,2]
[311582700,1705254648903,-500.0,0.00028044,2]
[311582702,1705254648912,-500.0,0.00028044,2]
[311582704,1705254648921,-500.0,0.00028044,2]
[311582706,1705254648933,-500.0,0.00028044,2]
[311582708,1705254648943,-500.0,0.00028044,2]
[311582710,1705254648952,-500.0,0.00028045,2]
[311582712,1705254648961,-1445.66,0.00028046,2]
[311582714,1705254648971,-162.51375347,0.00028218,2]
[311582716,1705254648979,-1445.66,0.00028218,2]
[311582718,1705254648988,-500.0,0.00028219,2]
[311582726,1705254648997,-500.0,0.00028219,2]
[311582728,1705254649064,-500.0,0.00028219,2]
[311582730,1705254649074,-500.0,0.00028219,2]
[311582732,1705254649083,-500.0,0.00028219,2]
[311582734,1705254649093,-500.0,0.00028219,2]
[311582736,1705254649102,-500.0,0.00028219,2]
[311582738,1705254649112,-500.0,0.00028219,2]
[311582740,1705254649121,-501.81667094,0.00028219,2]
[311582742,1705254649130,-500.0,0.00028219,2]
[311582744,1705254649139,-500.0,0.00028219,2]
[311582746,1705254649148,-502.05991619,0.00028219,2]
[311582748,1705254649156,-500.0,0.00028219,2]
[311582749,1705254649165,-500.0,0.00028219,2]
[311582752,1705254649175,-500.0,0.00028219,2]
[311582753,1705254649184,-500.0,0.00028219,2]
[311582755,1705254649196,-500.0,0.00028219,2]
[311582757,1705254649205,-507.93,0.00028219,2]
[311582759,1705254649214,-500.0,0.00028219,2]
[311582761,1705254649223,-465.32914216,0.00028219,2]
[311582763,1705254649233,-500.0,0.00028219,2]
[311582765,1705254649242,-500.0,0.00028219,2]
[311582767,1705254649252,-559.77477571,0.00028219,2]
[311582769,1705254649261,-261.02864836,0.00028219,2]
[311582771,1705254649271,-500.0,0.00028219,2]
[311582773,1705254649281,-500.0,0.00028219,2]
[311582775,1705254649290,-500.0,0.00028219,2]
[311582777,1705254649299,-500.0,0.00028219,2]
[311582780,1705254649309,-159.55593807,0.00028219,2]
[311582782,1705254649319,-1000.0,0.00028219,2]
[311582783,1705254649328,-500.0,0.00028219,2]
[311582786,1705254649337,-500.0,0.00028219,2]
[311582787,1705254649347,-500.0,0.00028219,2]
[311582790,1705254649357,-1389.57,0.00028219,2]
[311582792,1705254649366,-500.0,0.00028219,2]
[311582794,1705254649375,-500.0,0.00028219,2]
[311582795,1705254649385,-1000.0,0.00028219,2]
[311582798,1705254649394,-500.0,0.00028219,2]
[311582799,1705254649403,-500.0,0.00028219,2]
[311582801,1705254649413,-952.6,0.00028219,2]
[311582803,1705254649422,-500.0,0.00028219,2]
[311582805,1705254649431,-619.6,0.00028219,2]
[311582808,1705254649440,-500.0,0.00028219,2]
[311582809,1705254649450,-500.0,0.00028219,2]
[311582811,1705254649459,-500.0,0.00028219,2]
[311582813,1705254649468,-500.0,0.00028219,2]
[311582815,1705254649477,-1830.8,0.00028219,2]
[311582817,1705254649487,-500.0,0.00028219,2]
[311582819,1705254649496,-500.0,0.00028219,2]
[311582821,1705254649505,-500.0,0.00028219,2]
[311582823,1705254649514,-500.0,0.00028219,2]
[311582826,1705254649524,-500.0,0.00028219,2]
[311582827,1705254649534,-579.83,0.00028219,2]
[311582830,1705254649543,-772.1,0.00028219,2]
[311582832,1705254649552,-506.34318493,0.00028219,2]
[311582833,1705254649561,-1120.26,0.00028219,2]
[311582835,1705254649570,-500.0,0.00028219,2]
[311582838,1705254649579,-500.0,0.00028219,2]
[311582839,1705254649588,-500.0,0.00028219,2]
[311582841,1705254649599,-500.0,0.00028219,2]
[311582843,1705254649607,-1091.52,0.00028219,2]
[311582844,1705254649616,-705.43,0.00028219,2]
[311582845,1705254649625,-538.21,0.00028219,2]
[311582846,1705254649636,-500.0,0.00028219,2]
[311582847,1705254649644,-500.0,0.00028219,2]
[311582848,1705254649653,-500.0,0.00028219,2]
[311582849,1705254649662,-500.0,0.00028219,2]
[311582850,1705254649671,-569.53502603,0.00028219,2]
[311582851,1705254649680,-235.15936769,0.00028219,2]
[311582852,1705254649689,-1145.92,0.00028219,2]
[311582853,1705254649698,-609.97,0.00028219,2]
[311582854,1705254649707,-500.0,0.00028219,2]
[311582855,1705254649716,-500.0,0.00028219,2]
[311582856,1705254649725,-500.0,0.00028219,2]
[311582857,1705254649734,-500.0,0.00028219,2]
[311582858,1705254649743,-500.0,0.00028219,2]
[311582859,1705254649752,-500.0,0.00028219,2]
[311582860,1705254649761,-500.0,0.00028219,2]
[311582861,1705254649770,-500.0,0.00028219,2]
[311582862,1705254649779,-1707.15,0.00028219,2]
[311582863,1705254649789,-500.0,0.00028219,2]
[311582864,1705254649798,-500.0,0.00028219,2]
[311582865,1705254649808,-500.0,0.00028219,2]
[311582866,1705254649817,-500.0,0.00028219,2]
[311582867,1705254649826,-500.0,0.00028219,2]
[311582868,1705254649835,-500.0,0.00028219,2]
[311582869,1705254649846,-502.73231423,0.00028219,2]
[311582870,1705254649856,-597.93975768,0.00028219,2]
[311582871,1705254649866,-500.0,0.00028219,2]
[311582872,1705254649875,-398.43963782,0.00028219,2]
[311582873,1705254649885,-500.0,0.00028219,2]
[311582874,1705254649895,-740.04,0.00028219,2]
[311582875,1705254649904,-500.0,0.00028219,2]
[311582876,1705254649914,-500.0,0.00028219,2]
[311582878,1705254649923,-500.0,0.00028219,2]
[311582879,1705254649932,-500.0,0.00028219,2]
[311582881,1705254649942,-3116.45,0.00028219,2]
[311582883,1705254649951,-1202.04,0.00028219,2]
[311582885,1705254649960,-500.0,0.00028219,2]
[311582887,1705254649969,-507.91,0.00028219,2]
[311582889,1705254649978,-500.0,0.00028219,2]
[311582891,1705254649987,-500.0,0.00028219,2]
[311582893,1705254649996,-500.0,0.00028219,2]
[311582895,1705254650005,-500.0,0.00028219,2]
[311582897,1705254650014,-500.0,0.00028219,2]
[311582899,1705254650023,-507.71507767,0.00028219,2]
[311582900,1705254650035,-1509.17,0.00028219,2]
[311582902,1705254650044,-293.13279507,0.00028219,2]
[311582904,1705254650054,-3947.1,0.00028219,2]
[311582906,1705254650063,-500.0,0.00028219,2]
[311582908,1705254650071,-1756.25,0.00028219,2]
[311582910,1705254650082,-573.05,0.00028219,2]
[311582912,1705254650091,-500.0,0.00028219,2]
[311582913,1705254650101,-1438.12,0.00028219,2]
[311582914,1705254650112,-613.18,0.00028219,2]
[311582915,1705254650122,-616.28,0.00028219,2]
[311582916,1705254650132,-500.0,0.00028219,2]
[311582917,1705254650141,-9239.43,0.00028219,2]
[311582918,1705254650151,-500.0,0.00028219,2]
[311582919,1705254650160,-357.61194086,0.00028219,2]
[311582920,1705254650169,-500.0,0.00028219,2]
[311582921,1705254650237,-500.0,0.00028219,2]
[311582922,1705254650247,-12220.81,0.00028219,2]
[311582923,1705254650256,-500.0,0.00028219,2]
[311582924,1705254650265,-2045.14,0.00028219,2]
[311582925,1705254650274,-500.0,0.00028219,2]
[311582926,1705254650283,-628.92033821,0.00028219,2]
[311582927,1705254650293,-5022.71,0.00028219,2]
[311582928,1705254650302,-500.0,0.00028219,2]
[311582929,1705254650312,-500.0,0.00028219,2]
[311582930,1705254650321,-636.10524314,0.00028219,2]
[311582931,1705254650331,-615.79197859,0.00028219,2]
[311582932,1705254650340,-600.91,0.00028219,2]
[311582933,1705254650351,-500.0,0.00028219,2]
[311582934,1705254650360,-500.0,0.00028219,2]
[311582935,1705254650369,-500.0,0.00028219,2]
[311582936,1705254650378,-500.0,0.00028219,2]
[311582937,1705254650387,-500.0,0.00028219,2]
[311582938,1705254650396,-500.0,0.00028219,2]
[311582939,1705254650405,-1813.05,0.00028219,2]
[311582940,1705254650414,-500.0,0.00028219,2]
[311582941,1705254650423,-653.77,0.00028219,2]
[311582942,1705254650432,-500.0,0.00028219,2]
[311582943,1705254650442,-500.0,0.00028219,2]
[311582944,1705254650451,-902.86,0.00028219,2]
[311582945,1705254650460,-500.0,0.00028219,2]
[311582946,1705254650470,-500.0,0.00028219,2]
[311582947,1705254650479,-564.96,0.00028219,2]
[311582948,1705254650488,-7932.25,0.00028219,2]
[311582949,1705254650498,-549.77,0.00028219,2]
[311582950,1705254650506,-500.0,0.00028219,2]
[311582951,1705254650516,-1250.0,0.00028219,2]
[311582952,1705254650525,-500.0,0.00028219,2]
[311582953,1705254650534,-3903.04,0.00028219,2]
[311582954,1705254650543,-20393.0,0.00028219,2]
[311582955,1705254650551,-507.03720621,0.00028219,2]
[311582956,1705254650560,-500.83076919,0.00028219,2]
[311582957,1705254650569,-500.0,0.00028219,2]
[311582958,1705254650578,-500.0,0.00028219,2]
[311582959,1705254650588,-2381.85,0.00028219,2]
[311582960,1705254650598,-35435.49,0.00028219,2]
[311582961,1705254650607,-500.0,0.00028219,2]
[311582962,1705254650616,-1072.66,0.00028219,2]
[311582963,1705254650625,-500.0,0.00028219,2]
[311582964,1705254650634,-500.0,0.00028219,2]
[311582965,1705254650644,-500.0,0.00028219,2]
[311582966,1705254650652,-2132.11,0.00028219,2]
[311582967,1705254650661,-500.0,0.00028219,2]
[311582968,1705254650670,-500.0,0.00028219,2]
[311582969,1705254650679,-500.0,0.00028219,2]
[311582970,1705254650688,-500.0,0.00028219,2]
[311582971,1705254650697,-593.35,0.00028219,2]
[311582972,1705254650706,-500.0,0.00028219,2]
[311582973,1705254650715,-500.0,0.00028219,2]
[311582974,1705254650725,-1250.98,0.00028219,2]
[311582975,1705254650734,-500.0,0.00028219,2]
[311582976,1705254650743,-500.0,0.00028219,2]
[311582978,1705254650752,-1667.87,0.00028219,2]
[311582979,1705254650761,-500.0,0.00028219,2]
[311582980,1705254650770,-500.0,0.00028219,2]
[311582981,1705254650779,-500.0,0.00028219,2]
[311582982,1705254650790,-500.0,0.00028219,2]
[311582983,1705254650799,-500.0,0.00028219,2]
[311582985,1705254650809,-500.0,0.00028219,2]
[311582987,1705254650818,-929.87,0.00028219,2]
[311582989,1705254650828,-500.0,0.00028219,2]
[311582991,1705254650837,-500.0,0.00028219,2]
[311582992,1705254650848,-500.0,0.00028219,2]
[311582993,1705254650857,-500.0,0.00028219,2]
[311582995,1705254650866,-935.05,0.00028219,2]
[311582997,1705254650875,-500.0,0.00028219,2]
[311582999,1705254650885,-500.0,0.00028219,2]
[311583000,1705254650894,-500.0,0.00028219,2]
[311583001,1705254650903,-868.52,0.00028219,2]
[311583003,1705254650912,-500.0,0.00028219,2]
[311583005,1705254650921,-241.37743917,0.00028219,2]
[311583007,1705254650930,-500.0,0.00028219,2]
[311583008,1705254650939,-500.0,0.00028219,2]
[311583010,1705254650949,-8254.29,0.00028219,2]
[311583012,1705254650958,-3237.08,0.00028219,2]
[311583014,1705254650968,-500.0,0.00028219,2]
[311583016,1705254650977,-500.0,0.00028219,2]
[311583019,1705254650987,-500.0,0.00028219,2]
[311583021,1705254650997,-500.0,0.00028219,2]
[311583023,1705254651006,-1112.47,0.00028219,2]
[311583025,1705254651016,-428.3872351,0.00028219,2]
[311583027,1705254651025,-500.0,0.00028219,2]
[311583028,1705254651033,-158.72792269,0.00028289,2]
[311583030,1705254651043,-500.0,0.00028317,2]
[311583032,1705254651053,-1445.66,0.00028317,2]
[311583034,1705254651062,-500.0,0.00028318,2]
[311583037,1705254651072,-387.36439512,0.00028318,2]
[311583038,1705254651081,-500.0,0.00028318,2]
[311583040,1705254651091,-500.0,0.00028318,2]
[311583041,1705254651101,-500.0,0.00028318,2]
[311583042,1705254651109,-383.11577033,0.0002832,2]
[311583043,1705254651119,-1445.66,0.0002832,2]
[311583044,1705254651128,-1445.66,0.00028492,2]
[311583045,1705254651137,-1445.66,0.00028492,2]
[311583046,1705254651147,-1445.66,0.00028492,2]
[311583047,1705254651156,-1445.66,0.00028492,2]
[311583048,1705254651165,-1445.88818658,0.00028492,2]
[311583049,1705254651174,-500.0,0.00028493,2]
[311583050,1705254651183,-498.36168387,0.00028493,2]
[311583051,1705254651192,-500.0,0.00028493,2]
[311583052,1705254651201,-500.0,0.00028493,2]
[311583053,1705254651210,-500.0,0.00028493,2]
[311583054,1705254651219,-500.0,0.00028493,2]
[311583055,1705254651229,-500.0,0.00028493,2]
[311583056,1705254651238,-500.0,0.00028493,2]
[311583057,1705254651247,-500.0,0.00028493,2]
[311583058,1705254651310,-521.1942348,0.00028493,2]
[311583059,1705254651320,-500.0,0.00028493,2]
[311583060,1705254651329,-500.0,0.00028493,2]
[311583061,1705254651338,-352.81105067,0.00028493,2]
[311583062,1705254651347,-461.79230373,0.00028493,2]
[311583063,1705254651357,-500.0,0.00028493,2]
[311583064,1705254651366,-507.93,0.00028493,2]
[311583065,1705254651375,-500.0,0.00028493,2]
[311583066,1705254651384,-302.94543541,0.00028493,2]
[311583067,1705254651394,-500.0,0.00028493,2]
[311583068,1705254651403,-500.0,0.00028493,2]
[311583069,1705254651412,-500.0,0.00028493,2]
[311583070,1705254651423,-417.05988625,0.00028493,2]
[311583071,1705254651432,-500.0,0.00028493,2]
[311583072,1705254651441,-1000.0,0.00028493,2]
[311583073,1705254651450,-500.0,0.00028493,2]
[311583074,1705254651460,-500.0,0.00028493,2]
[311583075,1705254651469,-500.0,0.00028493,2]
[311583076,1705254651478,-1389.57,0.00028493,2]
[311583077,1705254651488,-509.48319526,0.00028493,2]
[311583078,1705254651499,-404.20160165,0.00028493,2]
[311583079,1705254651508,-1000.0,0.00028493,2]
[311583080,1705254651517,-500.0,0.00028493,2]
[311583081,1705254651526,-500.0,0.00028493,2]
[311583082,1705254651535,-952.6,0.00028493,2]
[311583083,1705254651544,-500.0,0.00028493,2]
[311583084,1705254651553,-619.6,0.00028493,2]
[311583085,1705254651562,-500.0,0.00028493,2]
[311583086,1705254651572,-500.0,0.00028493,2]
[311583087,1705254651581,-500.0,0.00028493,2]
[311583088,1705254651590,-500.0,0.00028493,2]
[311583089,1705254651599,-1830.8,0.00028493,2]
[311583090,1705254651608,-158.4023009,0.00028493,2]
[311583091,1705254651617,-500.0,0.00028493,2]
[311583092,1705254651626,-500.0,0.00028493,2]
[311583093,1705254651636,-500.0,0.00028493,2]
[311583094,1705254651645,-500.0,0.00028493,2]
[311583095,1705254651654,-579.83,0.00028493,2]
[311583096,1705254651663,-772.1,0.00028493,2]
[311583097,1705254651672,-1120.26,0.00028493,2]
[311583098,1705254651681,-500.0,0.00028493,2]
[311583099,1705254651691,-500.0,0.00028493,2]
[311583101,1705254651700,-619.09681012,0.00028493,2]
[311583103,1705254651709,-500.0,0.00028493,2]
[311583104,1705254651718,-1091.52,0.00028493,2]
[311583105,1705254651727,-705.43,0.00028493,2]
[311583106,1705254651736,-538.21,0.00028493,2]
[311583108,1705254651745,-515.26628988,0.00028493,2]
[311583110,1705254651755,-500.0,0.00028493,2]
[311583112,1705254651764,-507.87823536,0.00028493,2]
[311583114,1705254651773,-500.0,0.00028493,2]
[311583116,1705254651783,-1145.92,0.00028493,2]
[311583117,1705254651792,-609.97,0.00028493,2]
[311583118,1705254651801,-500.0,0.00028493,2]
[311583120,1705254651810,-500.0,0.00028493,2]
[311583122,1705254651820,-500.0,0.00028493,2]
[311583124,1705254651829,-503.3309175,0.00028493,2]
[311583126,1705254651838,-236.40930605,0.00028493,2]
[311583128,1705254651848,-500.0,0.00028493,2]
[311583130,1705254651858,-317.23703066,0.00028493,2]
[311583132,1705254651867,-452.0982146,0.00028493,2]
[311583134,1705254651876,-1707.15,0.00028493,2]
[311583136,1705254651885,-500.0,0.00028493,2]
[311583137,1705254651894,-500.0,0.00028493,2]
[311583139,1705254651903,-500.0,0.00028493,2]
[311583141,1705254651912,-500.0,0.00028493,2]
[311583142,1705254651921,-500.0,0.00028493,2]
[311583143,1705254651930,-500.0,0.00028493,2]
[311583144,1705254651939,-500.0,0.00028493,2]
[311583145,1705254651948,-500.0,0.00028493,2]
[311583146,1705254651958,-740.04,0.00028493,2]
[311583147,1705254651967,-500.0,0.00028493,2]
[311583148,1705254651977,-500.0,0.00028493,2]
[311583149,1705254651986,-500.0,0.00028493,2]
[311583150,1705254651995,-3116.45,0.00028493,2]
[311583151,1705254652004,-1202.04,0.00028493,2]
[311583152,1705254652013,-500.0,0.00028493,2]
[311583154,1705254652023,-507.91,0.00028493,2]
[311583155,1705254652036,-500.0,0.00028493,2]
[311583156,1705254652046,-500.0,0.00028493,2]
[311583157,1705254652055,-500.0,0.00028493,2]
[311583158,1705254652064,-529.08421022,0.00028493,2]
[311583159,1705254652074,-501.01249999,0.00028493,2]
[311583160,1705254652083,-1509.17,0.00028493,2]
[311583161,1705254652092,-3947.1,0.00028493,2]
[311583162,1705254652101,-500.0,0.00028493,2]
[311583163,1705254652111,-1756.25,0.00028493,2]
[311583164,1705254652120,-573.05,0.00028493,2]
[311583165,1705254652129,-502.48431119,0.00028493,2]
[311583166,1705254652138,-1438.12,0.00028493,2]
[311583167,1705254652147,-613.18,0.00028493,2]
[311583168,1705254652156,-616.28,0.00028493,2]
[311583169,1705254652164,-500.0,0.00028493,2]
[311583170,1705254652174,-9239.43,0.00028493,2]
[311583171,1705254652183,-500.0,0.00028493,2]
[311583172,1705254652192,-500.0,0.00028493,2]
[311583173,1705254652201,-215.85448759,0.00028493,2]
[311583174,1705254652210,-12220.81,0.00028493,2]
[311583175,1705254652219,-500.0,0.00028493,2]
[311583176,1705254652228,-2045.14,0.00028493,2]
[311583177,1705254652237,-500.0,0.00028493,2]
[311583184,1705254652297,-5022.71,0.00028493,2]
[311583186,1705254652306,-500.0,0.00028493,2]
[311583188,1705254652315,-500.0,0.00028493,2]
[311583190,1705254652324,-600.91,0.00028493,2]
[311583192,1705254652333,-500.0,0.00028493,2]
[311583194,1705254652342,-500.0,0.00028493,2]
[311583196,1705254652351,-500.0,0.00028493,2]
[311583198,1705254652360,-500.0,0.00028493,2]
[311583200,1705254652369,-417.80270551,0.00028493,2]
[311583202,1705254652378,-308.31412582,0.00028493,2]
[311583204,1705254652387,-1813.05,0.00028493,2]
[311583206,1705254652395,-537.31070886,0.00028493,2]
[311583208,1705254652404,-653.77,0.00028493,2]
[311583210,1705254652413,-500.0,0.00028493,2]
[311583212,1705254652422,-501.55397726,0.00028493,2]
[311583214,1705254652430,-902.86,0.00028493,2]
[311583216,1705254652440,-500.0,0.00028493,2]
[311583218,1705254652449,-500.0,0.00028493,2]
[311583220,1705254652458,-564.96,0.00028493,2]
[311583222,1705254652467,-7932.25,0.00028493,2]
[311583224,1705254652476,-549.77,0.00028493,2]
[311583226,1705254652485,-500.0,0.00028493,2]
[311583228,1705254652496,-1250.0,0.00028493,2]
[311583230,1705254652506,-500.0,0.00028493,2]
[311583232,1705254652515,-3903.04,0.00028493,2]
[311583234,1705254652524,-20393.0,0.00028493,2]
[311583236,1705254652533,-500.0,0.00028493,2]
[311583238,1705254652542,-500.0,0.00028493,2]
[311583240,1705254652551,-2381.85,0.00028493,2]
[311583242,1705254652561,-35435.49,0.00028493,2]
[311583244,1705254652570,-500.0,0.00028493,2]
[311583246,1705254652579,-1072.66,0.00028493,2]
[311583248,1705254652588,-500.0,0.00028493,2]
[311583250,1705254652597,-500.0,0.00028493,2]
[311583252,1705254652606,-500.0,0.00028493,2]
[311583254,1705254652615,-2132.11,0.00028493,2]
[311583256,1705254652624,-500.0,0.00028493,2]
[311583258,1705254652633,-500.0,0.00028493,2]
[311583260,1705254652642,-500.0,0.00028493,2]
[311583262,1705254652650,-500.0,0.00028493,2]
[311583263,1705254652659,-593.35,0.00028493,2]
[311583266,1705254652669,-500.0,0.00028493,2]
[311583267,1705254652678,-500.0,0.00028493,2]
[311583270,1705254652687,-1250.98,0.00028493,2]
[311583271,1705254652696,-500.0,0.00028493,2]
[311583274,1705254652705,-500.0,0.00028493,2]
[311583276,1705254652714,-1667.87,0.00028493,2]
[311583277,1705254652723,-500.0,0.00028493,2]
[311583279,1705254652732,-500.0,0.00028493,2]
[311583281,1705254652742,-500.0,0.00028493,2]
[311583283,1705254652753,-500.0,0.00028493,2]
[311583285,1705254652762,-500.0,0.00028493,2]
[311583288,1705254652772,-500.0,0.00028493,2]
[311583289,1705254652781,-929.87,0.00028493,2]
[311583292,1705254652790,-500.0,0.00028493,2]
[311583293,1705254652799,-500.0,0.00028493,2]
[311583295,1705254652807,-500.0,0.00028493,2]
[311583297,1705254652816,-500.0,0.00028493,2]
[311583299,1705254652825,-935.05,0.00028493,2]
[311583300,1705254652834,-500.0,0.00028493,2]
[311583302,1705254652843,-500.0,0.00028493,2]
[311583304,1705254652852,-503.8784956,0.00028493,2]
[311583306,1705254652861,-868.52,0.00028493,2]
[311583308,1705254652870,-500.0,0.00028493,2]
[311583310,1705254652878,-500.0,0.00028493,2]
[311583312,1705254652887,-500.0,0.00028493,2]
[311583314,1705254652896,-8254.29,0.00028493,2]
[311583316,1705254652906,-3237.08,0.00028493,2]
[311583318,1705254652914,-500.0,0.00028493,2]
[311583320,1705254652924,-500.0,0.00028493,2]
[311583322,1705254652932,-521.5352284,0.00028493,2]
[311583324,1705254652941,-500.0,0.00028493,2]
[311583326,1705254652951,-1112.47,0.00028493,2]
[311583328,1705254652961,-198.8089634,0.00028493,2]
[311583330,1705254652970,-198.8089634,0.00028493,2]
[311583332,1705254652979,-153.02380808,0.00028543,2]
[311583334,1705254652989,-500.0,0.00028592,2]
[311583336,1705254652999,-500.0,0.00028592,2]
[311583338,1705254653008,-500.0,0.00028592,2]
[311583340,1705254653018,-465.32110665,0.00028592,2]
[311583342,1705254653029,-671.84284078,0.00028766,2]
[311583344,1705254653040,-500.0,0.00028767,2]
[311583346,1705254653048,-504.19080815,0.00028767,2]
[311583348,1705254653057,-500.0,0.00028767,2]
[311583350,1705254653066,-500.0,0.00028767,2]
[311583352,1705254653076,-500.0,0.00028767,2]
[311583354,1705254653085,-500.0,0.00028767,2]
[311583356,1705254653093,-500.0,0.00028767,2]
[311583358,1705254653102,-500.0,0.00028767,2]
[311583360,1705254653111,-508.19510463,0.00028767,2]
[311583362,1705254653120,-506.63745919,0.00028767,2]
[311583364,1705254653129,-500.0,0.00028767,2]
[311583366,1705254653137,-507.93,0.00028767,2]
[311583374,1705254653196,-500.0,0.00028767,2]
[311583376,1705254653205,-500.0,0.00028767,2]
[311583378,1705254653214,-500.0,0.00028767,2]
[311583380,1705254653223,-500.0,0.00028767,2]
[311583382,1705254653231,-506.61588092,0.00028767,2]
[311583384,1705254653241,-1000.0,0.00028767,2]
[311583386,1705254653250,-500.0,0.00028767,2]
[311583388,1705254653259,-500.0,0.00028767,2]
[311583390,1705254653268,-500.0,0.00028767,2]
[311583391,1705254653277,-1389.57,0.00028767,2]
[311583394,1705254653286,-443.16856451,0.00028767,2]
[311583395,1705254653294,-500.0,0.00028767,2]
[311583397,1705254653303,-544.96071145,0.00028767,2]
[311583399,1705254653312,-952.6,0.00028767,2]
[311583401,1705254653321,-500.0,0.00028767,2]
[311583403,1705254653330,-619.6,0.00028767,2]
[311583405,1705254653339,-500.0,0.00028767,2]
[311583407,1705254653349,-365.14044456,0.00028767,2]
[311583409,1705254653358,-500.0,0.00028767,2]
[311583411,1705254653367,-500.0,0.00028767,2]
[311583413,1705254653376,-1830.8,0.00028767,2]
[311583415,1705254653385,-500.0,0.00028767,2]
[311583417,1705254653394,-529.34715307,0.00028767,2]
[311583419,1705254653402,-500.0,0.00028767,2]
[311583421,1705254653411,-500.0,0.00028767,2]
[311583423,1705254653420,-579.83,0.00028767,2]
[311583425,1705254653429,-772.1,0.00028767,2]
[311583427,1705254653438,-1120.26,0.00028767,2]
[311583429,1705254653447,-500.0,0.00028767,2]
[311583431,1705254653456,-500.0,0.00028767,2]
[311583433,1705254653465,-500.0,0.00028767,2]
[311583435,1705254653474,-1091.52,0.00028767,2]
[311583437,1705254653483,-705.43,0.00028767,2]
[311583439,1705254653492,-538.21,0.00028767,2]
[311583441,1705254653501,-500.0,0.00028767,2]
[311583443,1705254653511,-507.25393462,0.00028767,2]
[311583445,1705254653520,-1145.92,0.00028767,2]
[311583447,1705254653529,-609.97,0.00028767,2]
[311583449,1705254653539,-500.0,0.00028767,2]
[311583451,1705254653548,-500.0,0.00028767,2]
[311583453,1705254653558,-500.0,0.00028767,2]
[311583455,1705254653567,-507.72720742,0.00028767,2]
[311583458,1705254653581,-1707.15,0.00028767,2]
[311583461,1705254653602,-500.0,0.00028767,2]
[311583464,1705254653618,-500.0,0.00028767,2]